[Event "Early-Titled-Tuesday-Blitz-April-16-2024"]
[Site "Chess.com"]
[Date "2024.04.16"]
[Round "5"]
[White "AlexKhripachenko"]
[Black "dropstoneDP"]
[Result "1/2-1/2"]
[WhiteElo "2836"]
[BlackElo "3062"]
[TimeControl "180+1"]
[EndTime "8:58:06 PDT"]
[Termination "Game drawn by repetition"]

1. e4 {[%clk 0:03:00.9]} 1... e5 {[%clk 0:02:59.5]} 2. Nf3 {[%clk 0:03:00.4]}
2... Nf6 {[%clk 0:02:59.9]} 3. Nxe5 {[%clk 0:02:59.1]} 3... d6 {[%clk
0:03:00.4]} 4. Nf3 {[%clk 0:02:58.2]} 4... Nxe4 {[%clk 0:03:00.9]} 5. d3 {[%clk
0:02:57.9]} 5... Nf6 {[%clk 0:02:59.8]} 6. d4 {[%clk 0:02:58.3]} 6... d5 {[%clk
0:03:00.3]} 7. Bd3 {[%clk 0:02:58.4]} 7... Bd6 {[%clk 0:03:00.6]} 8. O-O {[%clk
0:02:58.4]} 8... O-O {[%clk 0:03:00.6]} 9. Bg5 {[%clk 0:02:57.4]} 9... Bg4
{[%clk 0:02:59.4]} 10. c3 {[%clk 0:02:56]} 10... h6 {[%clk 0:02:58.8]} 11. Bh4
{[%clk 0:02:55.7]} 11... Re8 {[%clk 0:02:59.4]} 12. Nbd2 {[%clk 0:02:55.5]}
12... Nbd7 {[%clk 0:02:58.1]} 13. Qc2 {[%clk 0:02:54.8]} 13... c6 {[%clk
0:02:52.6]} 14. h3 {[%clk 0:02:53.2]} 14... Bxf3 {[%clk 0:02:53.1]} 15. Nxf3
{[%clk 0:02:52.7]} 15... Qc7 {[%clk 0:02:53.6]} 16. Rfe1 {[%clk 0:02:52.9]}
16... g5 {[%clk 0:02:52.8]} 17. Nxg5 {[%clk 0:02:39.6]} 17... hxg5 {[%clk
0:02:52.2]} 18. Bxg5 {[%clk 0:02:40.5]} 18... Bf4 {[%clk 0:02:48.5]} 19. Bh4
{[%clk 0:02:38.7]} 19... Kg7 {[%clk 0:02:40.3]} 20. Bf5 {[%clk 0:02:34.6]} 20...
Rh8 {[%clk 0:02:31.1]} 21. g3 {[%clk 0:02:34.7]} 21... Rxh4 {[%clk 0:02:24.3]}
22. gxh4 {[%clk 0:02:35.6]} 22... Rh8 {[%clk 0:02:24.5]} 23. Re7 {[%clk
0:02:27]} 23... Bd6 {[%clk 0:02:12.5]} 24. Re3 {[%clk 0:02:21.4]} 24... Nf8
{[%clk 0:01:37.3]} 25. Kh1 {[%clk 0:02:17.3]} 25... Rxh4 {[%clk 0:01:27.6]} 26.
Rg1+ {[%clk 0:02:17.4]} 26... Kh8 {[%clk 0:01:27.9]} 27. Rf3 {[%clk 0:02:16.4]}
27... Qe7 {[%clk 0:01:08.3]} 28. Qc1 {[%clk 0:01:44.4]} 28... Ne4 {[%clk
0:01:01.3]} 29. Rg4 {[%clk 0:01:44.7]} 29... Rxg4 {[%clk 0:00:43.3]} 30. Qh6+
{[%clk 0:01:41.8]} 30... Kg8 {[%clk 0:00:43.9]} 31. hxg4 {[%clk 0:01:37.2]}
31... Qg5 {[%clk 0:00:35.6]} 32. Qxg5+ {[%clk 0:01:20.1]} 32... Nxg5 {[%clk
0:00:36.5]} 33. Re3 {[%clk 0:01:18.6]} 33... Nfe6 {[%clk 0:00:36.7]} 34. Kg2
{[%clk 0:00:54.4]} 34... Kg7 {[%clk 0:00:35.3]} 35. Kf1 {[%clk 0:00:54.2]} 35...
a5 {[%clk 0:00:26.3]} 36. Ke1 {[%clk 0:00:44.9]} 36... Bf4 {[%clk 0:00:24.7]}
37. Re2 {[%clk 0:00:44.6]} 37... a4 {[%clk 0:00:24]} 38. Kd1 {[%clk 0:00:43.6]}
38... Kf6 {[%clk 0:00:16.5]} 39. Kc2 {[%clk 0:00:43.5]} 39... Nf3 {[%clk
0:00:16.5]} 40. b3 {[%clk 0:00:39.4]} 40... axb3+ {[%clk 0:00:13.9]} 41. axb3
{[%clk 0:00:40.3]} 41... Nexd4+ {[%clk 0:00:13]} 42. cxd4 {[%clk 0:00:41.2]}
42... Nxd4+ {[%clk 0:00:13.6]} 43. Kd3 {[%clk 0:00:42.1]} 43... Nxe2 {[%clk
0:00:14.2]} 44. Kxe2 {[%clk 0:00:43]} 44... Ke5 {[%clk 0:00:14.4]} 45. Bc8
{[%clk 0:00:40.5]} 45... b5 {[%clk 0:00:13.7]} 46. Bd7 {[%clk 0:00:39.4]} 46...
Kd6 {[%clk 0:00:14.1]} 47. Be8 {[%clk 0:00:40]} 47... f6 {[%clk 0:00:14.5]} 48.
Kd3 {[%clk 0:00:39.1]} 48... Kc7 {[%clk 0:00:08.8]} 49. f3 {[%clk 0:00:37.8]}
49... Kb6 {[%clk 0:00:09]} 50. Bf7 {[%clk 0:00:31.2]} 50... Kc5 {[%clk
0:00:06.5]} 51. Be8 {[%clk 0:00:31.5]} 51... Kb6 {[%clk 0:00:05.7]} 52. Bf7
{[%clk 0:00:25.4]} 52... Bc1 {[%clk 0:00:05.7]} 53. Kc3 {[%clk 0:00:23]} 53...
Kc7 {[%clk 0:00:06]} 54. Be8 {[%clk 0:00:22.3]} 54... Kd6 {[%clk 0:00:06.3]} 55.
Kd3 {[%clk 0:00:21.8]} 55... b4 {[%clk 0:00:06.2]} 56. Bf7 {[%clk 0:00:20.7]}
56... Bg5 {[%clk 0:00:06]} 57. Bg8 {[%clk 0:00:21]} 57... Ke5 {[%clk 0:00:05.7]}
58. Bf7 {[%clk 0:00:21.5]} 58... Kf4 {[%clk 0:00:06.3]} 59. Ke2 {[%clk
0:00:21.8]} 59... Bh4 {[%clk 0:00:04]} 60. Bg8 {[%clk 0:00:21.2]} 60... Ke5
{[%clk 0:00:04.2]} 61. Kd3 {[%clk 0:00:21.5]} 61... Kf4 {[%clk 0:00:04.4]} 62.
Ke2 {[%clk 0:00:21.2]} 62... Bg3 {[%clk 0:00:05]} 63. Bf7 {[%clk 0:00:21.1]}
63... Bh2 {[%clk 0:00:04.4]} 64. Bg8 {[%clk 0:00:21.4]} 64... Bg1 {[%clk
0:00:04.4]} 65. Bf7 {[%clk 0:00:22]} 65... Bb6 {[%clk 0:00:05]} 66. Bg8 {[%clk
0:00:22.4]} 66... Ba7 {[%clk 0:00:05.6]} 67. Bf7 {[%clk 0:00:22.9]} 67... Bb6
{[%clk 0:00:06.2]} 68. Bg8 {[%clk 0:00:23.6]} 68... Ke5 {[%clk 0:00:06.6]} 69.
Kd3 {[%clk 0:00:23.3]} 69... Bd8 {[%clk 0:00:07.2]} 70. Bf7 {[%clk 0:00:23.3]}
70... Be7 {[%clk 0:00:07.7]} 71. Bg8 {[%clk 0:00:22.7]} 71... f5 {[%clk
0:00:08.2]} 72. gxf5 {[%clk 0:00:22.3]} 72... Kxf5 {[%clk 0:00:09.1]} 73. Bf7
{[%clk 0:00:21.9]} 73... Ke5 {[%clk 0:00:09]} 74. Be8 {[%clk 0:00:21.8]} 74...
Kd6 {[%clk 0:00:09.6]} 75. f4 {[%clk 0:00:21.6]} 75... Bh4 {[%clk 0:00:09.6]}
76. f5 {[%clk 0:00:21.8]} 76... Bf6 {[%clk 0:00:09.7]} 77. Bf7 {[%clk
0:00:21.6]} 77... Ke5 {[%clk 0:00:08.6]} 78. Be6 {[%clk 0:00:19.3]} 78... Be7
{[%clk 0:00:08]} 79. Ke3 {[%clk 0:00:19.1]} 79... c5 {[%clk 0:00:07.5]} 80. Kd3
{[%clk 0:00:19.4]} 80... Bg5 {[%clk 0:00:08.1]} 81. Bf7 {[%clk 0:00:19.6]} 81...
Bf6 {[%clk 0:00:06.5]} 82. Be6 {[%clk 0:00:19.9]} 82... d4 {[%clk 0:00:07.1]}
83. Bc4 {[%clk 0:00:17.8]} 83... Kxf5 {[%clk 0:00:07.1]} 84. Bb5 {[%clk
0:00:18.7]} 84... Be7 {[%clk 0:00:07.6]} 85. Bc4 {[%clk 0:00:19.6]} 85... Kf4
{[%clk 0:00:08.5]} 86. Bb5 {[%clk 0:00:20.2]} 86... Kf3 {[%clk 0:00:09.4]} 87.
Bc4 {[%clk 0:00:21]} 87... Kf2 {[%clk 0:00:10.1]} 88. Bd5 {[%clk 0:00:21.7]}
88... Ke1 {[%clk 0:00:11]} 89. Bc4 {[%clk 0:00:22.6]} 89... Kd1 {[%clk
0:00:11.6]} 90. Bd5 {[%clk 0:00:23.5]} 90... Kc1 {[%clk 0:00:12.3]} 91. Bc4
{[%clk 0:00:24.4]} 91... Kb2 {[%clk 0:00:13.2]} 92. Bd5 {[%clk 0:00:25.1]} 92...
Bf8 {[%clk 0:00:14.1]} 93. Bc4 {[%clk 0:00:25.7]} 93... Be7 {[%clk 0:00:15]} 94.
Bd5 {[%clk 0:00:25.3]} 94... Bf8 {[%clk 0:00:15.9]} 95. Bc4 {[%clk 0:00:25.7]}
95... Be7 {[%clk 0:00:16.4]} 1/2-1/2

[Event "Early-Titled-Tuesday-Blitz-April-16-2024"]
[Site "Chess.com"]
[Date "2024.04.16"]
[Round "5"]
[White "Bilan_Danila"]
[Black "MikhailBLR"]
[Result "1-0"]
[WhiteElo "2531"]
[BlackElo "2325"]
[TimeControl "180+1"]
[EndTime "8:58:09 PDT"]
[Termination "Bilan_Danila won on time"]

1. d4 {[%clk 0:03:00.9]} 1... Nf6 {[%clk 0:02:59.6]} 2. Nf3 {[%clk 0:02:59.7]}
2... c5 {[%clk 0:03:00.2]} 3. e3 {[%clk 0:02:59.9]} 3... cxd4 {[%clk 0:03:00.1]}
4. exd4 {[%clk 0:03:00.2]} 4... d5 {[%clk 0:03:00.7]} 5. Bd3 {[%clk 0:02:58.9]}
5... Nc6 {[%clk 0:03:00.8]} 6. h3 {[%clk 0:02:58.6]} 6... g6 {[%clk 0:02:56.6]}
7. c3 {[%clk 0:02:52.8]} 7... Bf5 {[%clk 0:02:56.1]} 8. O-O {[%clk 0:02:48.8]}
8... Bxd3 {[%clk 0:02:55.7]} 9. Qxd3 {[%clk 0:02:48.8]} 9... Bg7 {[%clk
0:02:52.3]} 10. Bf4 {[%clk 0:02:45.1]} 10... O-O {[%clk 0:02:51.6]} 11. Nbd2
{[%clk 0:02:44.7]} 11... Rc8 {[%clk 0:02:50.5]} 12. Rfe1 {[%clk 0:02:38.3]}
12... a6 {[%clk 0:02:49]} 13. a4 {[%clk 0:02:38.1]} 13... Qb6 {[%clk 0:02:40.9]}
14. b4 {[%clk 0:02:20.6]} 14... e6 {[%clk 0:02:27.2]} 15. a5 {[%clk 0:02:16.2]}
15... Qd8 {[%clk 0:02:22.7]} 16. Ne5 {[%clk 0:01:40.4]} 16... Na7 {[%clk
0:02:14.8]} 17. Nb3 {[%clk 0:01:35.2]} 17... Nd7 {[%clk 0:02:06]} 18. Nxd7
{[%clk 0:01:30.4]} 18... Qxd7 {[%clk 0:02:06.1]} 19. Nc5 {[%clk 0:01:31]} 19...
Qc6 {[%clk 0:02:05.1]} 20. h4 {[%clk 0:01:13]} 20... Nb5 {[%clk 0:01:54.3]} 21.
h5 {[%clk 0:01:10.9]} 21... Rfd8 {[%clk 0:01:39.2]} 22. Re3 {[%clk 0:01:02.5]}
22... Nd6 {[%clk 0:01:22.7]} 23. Rae1 {[%clk 0:00:46]} 23... Ne4 {[%clk
0:01:17.5]} 24. Rh3 {[%clk 0:00:24.9]} 24... b6 {[%clk 0:00:57.5]} 25. axb6
{[%clk 0:00:22.1]} 25... Qxb6 {[%clk 0:00:57.6]} 26. Nxe4 {[%clk 0:00:08.9]}
26... dxe4 {[%clk 0:00:57.9]} 27. Qxe4 {[%clk 0:00:09.8]} 27... a5 {[%clk
0:00:56.4]} 28. bxa5 {[%clk 0:00:08]} 28... Qxa5 {[%clk 0:00:56.7]} 29. Qe3
{[%clk 0:00:07.8]} 29... Rd5 {[%clk 0:00:42.4]} 30. hxg6 {[%clk 0:00:07.8]}
30... hxg6 {[%clk 0:00:42.3]} 31. Bh6 {[%clk 0:00:08]} 31... Bf6 {[%clk
0:00:42.4]} 32. Bf4 {[%clk 0:00:06.7]} 32... Rf5 {[%clk 0:00:38.5]} 33. g3
{[%clk 0:00:05.9]} 33... Rxc3 {[%clk 0:00:32.4]} 34. Qd2 {[%clk 0:00:03.3]}
34... Qa3 {[%clk 0:00:30.4]} 35. Kh2 {[%clk 0:00:02.1]} 35... Rd3 {[%clk
0:00:29.1]} 36. Qc2 {[%clk 0:00:01.8]} 36... Rxd4 {[%clk 0:00:26.8]} 37. Qc8+
{[%clk 0:00:02.4]} 37... Qf8 {[%clk 0:00:27.1]} 38. Qxf8+ {[%clk 0:00:01.9]}
38... Kxf8 {[%clk 0:00:27.6]} 39. Rb1 {[%clk 0:00:02.7]} 39... Kg7 {[%clk
0:00:27.6]} 40. Be3 {[%clk 0:00:03]} 40... Rd3 {[%clk 0:00:27.3]} 41. Bh6+
{[%clk 0:00:03.9]} 41... Kg8 {[%clk 0:00:25.4]} 42. Rb8+ {[%clk 0:00:04.4]}
42... Rd8 {[%clk 0:00:25.6]} 43. Rb2 {[%clk 0:00:02.2]} 43... g5 {[%clk
0:00:24.4]} 44. Rc2 {[%clk 0:00:01.9]} 44... Rfd5 {[%clk 0:00:22.5]} 45. Kg2
{[%clk 0:00:01.6]} 45... Be7 {[%clk 0:00:21.1]} 46. f4 {[%clk 0:00:01.6]} 46...
f6 {[%clk 0:00:20.4]} 47. fxg5 {[%clk 0:00:01.8]} 47... fxg5 {[%clk 0:00:20.9]}
48. Rh5 {[%clk 0:00:01.9]} 48... Kf7 {[%clk 0:00:20.5]} 49. Rf2+ {[%clk
0:00:01.5]} 49... Kg6 {[%clk 0:00:20.5]} 50. Rh1 {[%clk 0:00:02]} 50... Rh8
{[%clk 0:00:17.5]} 51. Bxg5 {[%clk 0:00:02.5]} 51... Rxh1 {[%clk 0:00:17.1]} 52.
Bxe7 {[%clk 0:00:03.2]} 52... Rhd1 {[%clk 0:00:16.3]} 53. Kh3 {[%clk 0:00:02.4]}
53... Rf5 {[%clk 0:00:15.4]} 54. Ra2 {[%clk 0:00:02.3]} 54... Rd7 {[%clk
0:00:14.2]} 55. Bh4 {[%clk 0:00:02.8]} 55... Rdf7 {[%clk 0:00:14.1]} 56. Ra8
{[%clk 0:00:03.4]} 56... Rd5 {[%clk 0:00:12.8]} 57. Re8 {[%clk 0:00:03.9]} 57...
Kf5 {[%clk 0:00:12.4]} 58. Rg8 {[%clk 0:00:04]} 58... e5 {[%clk 0:00:12]} 59.
g4+ {[%clk 0:00:04.6]} 59... Ke4 {[%clk 0:00:11.8]} 60. g5 {[%clk 0:00:05.3]}
60... Kf5 {[%clk 0:00:07.4]} 61. g6 {[%clk 0:00:05.6]} 61... Rc7 {[%clk
0:00:05.7]} 62. g7 {[%clk 0:00:04.6]} 62... Kg6 {[%clk 0:00:04.8]} 63. Bg3
{[%clk 0:00:03]} 63... Rxg7 {[%clk 0:00:04.6]} 64. Re8 {[%clk 0:00:03.7]} 64...
Rh7+ {[%clk 0:00:04.7]} 65. Kg4 {[%clk 0:00:03.7]} 65... Kf6 {[%clk 0:00:04.2]}
66. Rf8+ {[%clk 0:00:03.4]} 66... Ke6 {[%clk 0:00:04.5]} 67. Re8+ {[%clk
0:00:03.9]} 67... Re7 {[%clk 0:00:04.8]} 68. Rg8 {[%clk 0:00:03.5]} 68... Rd4+
{[%clk 0:00:05.4]} 69. Kf3 {[%clk 0:00:03.8]} 69... Kd5 {[%clk 0:00:05.7]} 70.
Bf2 {[%clk 0:00:03.7]} 70... Rd3+ {[%clk 0:00:05.3]} 71. Ke2 {[%clk 0:00:04.5]}
71... e4 {[%clk 0:00:05.6]} 72. Rd8+ {[%clk 0:00:05]} 72... Kc4 {[%clk 0:00:06]}
73. Rc8+ {[%clk 0:00:05.3]} 73... Kb3 {[%clk 0:00:06.2]} 74. Be3 {[%clk
0:00:05.5]} 74... Rh7 {[%clk 0:00:05.7]} 75. Rb8+ {[%clk 0:00:06.1]} 75... Kc4
{[%clk 0:00:05.1]} 76. Rc8+ {[%clk 0:00:06.4]} 76... Kd5 {[%clk 0:00:04.9]} 77.
Rd8+ {[%clk 0:00:06.9]} 77... Ke5 {[%clk 0:00:05.2]} 78. Re8+ {[%clk 0:00:07.2]}
78... Kf5 {[%clk 0:00:05.4]} 79. Rf8+ {[%clk 0:00:07.8]} 79... Ke6 {[%clk
0:00:05.8]} 80. Re8+ {[%clk 0:00:08.1]} 80... Re7 {[%clk 0:00:06.1]} 81. Rf8
{[%clk 0:00:08.2]} 81... Ke5 {[%clk 0:00:05.8]} 82. Bf4+ {[%clk 0:00:07.1]}
82... Kd4 {[%clk 0:00:05.4]} 83. Rd8+ {[%clk 0:00:06.7]} 83... Kc3 {[%clk
0:00:05.2]} 84. Be3 {[%clk 0:00:07.1]} 84... Ra7 {[%clk 0:00:03]} 85. Bxa7
{[%clk 0:00:06.2]} 1-0

[Event "Early-Titled-Tuesday-Blitz-April-16-2024"]
[Site "Chess.com"]
[Date "2024.04.16"]
[Round "6"]
[White "ajeale2"]
[Black "SmirnovTimofey2000"]
[Result "1-0"]
[WhiteElo "2431"]
[BlackElo "1977"]
[TimeControl "180+1"]
[EndTime "9:03:14 PDT"]
[Termination "ajeale2 won by resignation"]

1. d4 {[%clk 0:03:00.9]} 1... d5 {[%clk 0:02:59.4]} 2. Bf4 {[%clk 0:03:00]} 2...
Bf5 {[%clk 0:02:59.1]} 3. e3 {[%clk 0:02:59.6]} 3... e6 {[%clk 0:02:59.1]} 4.
Nf3 {[%clk 0:02:59.9]} 4... Nf6 {[%clk 0:02:59.6]} 5. Ne5 {[%clk 0:03:00.1]}
5... Be7 {[%clk 0:02:51.9]} 6. g4 {[%clk 0:02:59.9]} 6... Bg6 {[%clk 0:02:41.1]}
7. h4 {[%clk 0:02:59.7]} 7... h5 {[%clk 0:02:29.8]} 8. Nxg6 {[%clk 0:02:59.1]}
8... fxg6 {[%clk 0:02:27.8]} 9. g5 {[%clk 0:02:59.1]} 9... Ne4 {[%clk
0:02:21.3]} 10. Bd3 {[%clk 0:02:58.8]} 10... O-O {[%clk 0:02:13.4]} 11. f3
{[%clk 0:02:56.1]} 11... Nd6 {[%clk 0:02:02.1]} 12. Bxg6 {[%clk 0:02:55.6]}
12... Nc4 {[%clk 0:01:43.9]} 13. b3 {[%clk 0:02:50.7]} 13... Nxe3 {[%clk
0:01:38.6]} 14. Bxe3 {[%clk 0:02:45.9]} 14... Rxf3 {[%clk 0:01:38.2]} 15. Qxf3
{[%clk 0:02:44.4]} 1-0

[Event "Early-Titled-Tuesday-Blitz-April-16-2024"]
[Site "Chess.com"]
[Date "2024.04.16"]
[Round "6"]
[White "djano"]
[Black "ReinisUz"]
[Result "1-0"]
[WhiteElo "2607"]
[BlackElo "2371"]
[TimeControl "180+1"]
[EndTime "9:03:18 PDT"]
[Termination "djano won by resignation"]

1. e4 {[%clk 0:03:00.9]} 1... e5 {[%clk 0:02:59.5]} 2. Nf3 {[%clk 0:02:58.6]}
2... Nc6 {[%clk 0:02:59.7]} 3. d4 {[%clk 0:02:58.4]} 3... exd4 {[%clk 0:02:59]}
4. Bc4 {[%clk 0:02:59]} 4... Nf6 {[%clk 0:02:45.4]} 5. O-O {[%clk 0:02:58.6]}
5... Bc5 {[%clk 0:02:40.1]} 6. e5 {[%clk 0:02:55.3]} 6... d5 {[%clk 0:02:38.9]}
7. exf6 {[%clk 0:02:55.8]} 7... dxc4 {[%clk 0:02:39.1]} 8. fxg7 {[%clk
0:02:53.3]} 8... Rg8 {[%clk 0:02:38.5]} 9. Bg5 {[%clk 0:02:52.7]} 9... Qd5
{[%clk 0:02:33.7]} 10. Nc3 {[%clk 0:02:48.7]} 10... Qf5 {[%clk 0:02:25.4]} 11.
Ne4 {[%clk 0:02:42.4]} 11... Be7 {[%clk 0:02:17.7]} 12. Bxe7 {[%clk 0:02:32.8]}
12... Nxe7 {[%clk 0:02:01.9]} 13. Qxd4 {[%clk 0:02:31.4]} 13... Nd5 {[%clk
0:01:46.7]} 14. Qxd5 {[%clk 0:02:29.3]} 1-0

[Event "Early-Titled-Tuesday-Blitz-April-16-2024"]
[Site "Chess.com"]
[Date "2024.04.16"]
[Round "6"]
[White "LastHeroJr"]
[Black "arenal72"]
[Result "0-1"]
[WhiteElo "2479"]
[BlackElo "2623"]
[TimeControl "180+1"]
[EndTime "9:03:44 PDT"]
[Termination "arenal72 won by resignation"]

1. e4 {[%clk 0:02:46.7]} 1... e6 {[%clk 0:02:55.4]} 2. d4 {[%clk 0:02:46.4]}
2... d5 {[%clk 0:02:54.2]} 3. exd5 {[%clk 0:02:47.3]} 3... exd5 {[%clk
0:02:53.3]} 4. Nf3 {[%clk 0:02:47.7]} 4... Bd6 {[%clk 0:02:53.3]} 5. Bd3 {[%clk
0:02:47.5]} 5... Nc6 {[%clk 0:02:52.1]} 6. O-O {[%clk 0:02:47.5]} 6... Nge7
{[%clk 0:02:51.7]} 7. c3 {[%clk 0:02:47.6]} 7... Bg4 {[%clk 0:02:51.1]} 8. Bg5
{[%clk 0:02:47.6]} 8... f6 {[%clk 0:02:50.9]} 9. Bh4 {[%clk 0:02:47.8]} 9... Qd7
{[%clk 0:02:51]} 10. Nbd2 {[%clk 0:02:47.4]} 10... O-O-O {[%clk 0:02:50.9]} 11.
Qa4 {[%clk 0:02:46.9]} 11... g5 {[%clk 0:02:44.1]} 12. Bg3 {[%clk 0:02:45.9]}
12... h5 {[%clk 0:02:44.2]} 13. Rfe1 {[%clk 0:02:45.6]} 13... h4 {[%clk
0:02:39.9]} 14. Bxd6 {[%clk 0:02:45.4]} 14... Qxd6 {[%clk 0:02:40.8]} 15. b4
{[%clk 0:02:45]} 15... Bxf3 {[%clk 0:02:25.7]} 16. Nxf3 {[%clk 0:02:44.5]} 16...
g4 {[%clk 0:02:25.7]} 17. Nd2 {[%clk 0:02:44.7]} 17... g3 {[%clk 0:02:22.4]} 18.
fxg3 {[%clk 0:02:41.3]} 18... hxg3 {[%clk 0:02:21.8]} 19. h3 {[%clk 0:02:40.4]}
19... Qf4 {[%clk 0:02:06.4]} 20. Re2 {[%clk 0:02:39.3]} 20... Nxd4 {[%clk
0:01:59.7]} 21. Rxe7 {[%clk 0:02:15.3]} 21... Qf2+ {[%clk 0:01:57.7]} 22. Kh1
{[%clk 0:02:12.3]} 22... Rxh3+ {[%clk 0:01:58.6]} 0-1

[Event "Early-Titled-Tuesday-Blitz-April-16-2024"]
[Site "Chess.com"]
[Date "2024.04.16"]
[Round "6"]
[White "Squirlolz"]
[Black "Harry_Rakkel"]
[Result "0-1"]
[WhiteElo "2576"]
[BlackElo "2745"]
[TimeControl "180+1"]
[EndTime "9:03:57 PDT"]
[Termination "Harry_Rakkel won by resignation"]

1. e4 {[%clk 0:03:00.9]} 1... c6 {[%clk 0:02:58.6]} 2. c3 {[%clk 0:03:00.2]}
2... d5 {[%clk 0:02:56.9]} 3. e5 {[%clk 0:03:00.8]} 3... Bf5 {[%clk 0:02:54.5]}
4. Nf3 {[%clk 0:03:01.2]} 4... e6 {[%clk 0:02:52.9]} 5. Be2 {[%clk 0:03:01.6]}
5... a5 {[%clk 0:02:50.9]} 6. O-O {[%clk 0:03:01.7]} 6... a4 {[%clk 0:02:50.3]}
7. Na3 {[%clk 0:03:01.2]} 7... h6 {[%clk 0:02:49]} 8. Nc2 {[%clk 0:03:01.4]}
8... Ne7 {[%clk 0:02:48.5]} 9. Ne3 {[%clk 0:02:59.6]} 9... Bh7 {[%clk
0:02:47.5]} 10. d4 {[%clk 0:02:59.4]} 10... b5 {[%clk 0:02:45.9]} 11. Ne1 {[%clk
0:02:58.4]} 11... Nd7 {[%clk 0:02:45]} 12. Bd3 {[%clk 0:02:58.6]} 12... Bxd3
{[%clk 0:02:43.4]} 13. Nxd3 {[%clk 0:02:58.9]} 13... h5 {[%clk 0:02:37.5]} 14.
f4 {[%clk 0:02:58.7]} 14... g6 {[%clk 0:02:37.6]} 15. g3 {[%clk 0:02:50.6]}
15... Nc8 {[%clk 0:02:36.3]} 16. h3 {[%clk 0:02:49.8]} 16... Ncb6 {[%clk
0:02:33.4]} 17. Kg2 {[%clk 0:02:49]} 17... Nc4 {[%clk 0:02:25.1]} 18. Qf3 {[%clk
0:02:49.1]} 18... Qb6 {[%clk 0:02:20.9]} 19. g4 {[%clk 0:02:48.2]} 19... Be7
{[%clk 0:02:11.8]} 20. f5 {[%clk 0:02:43]} 20... hxg4 {[%clk 0:02:09.4]} 21.
hxg4 {[%clk 0:02:42.3]} 21... gxf5 {[%clk 0:02:09.6]} 22. gxf5 {[%clk
0:02:42.2]} 22... O-O-O {[%clk 0:02:09.6]} 23. Nxc4 {[%clk 0:02:30.9]} 23...
bxc4 {[%clk 0:02:06.7]} 24. Nf4 {[%clk 0:02:31]} 24... Rdg8+ {[%clk 0:01:54.2]}
25. Kf2 {[%clk 0:02:29.6]} 25... Nxe5 {[%clk 0:01:53.9]} 26. Qd1 {[%clk
0:02:21.6]} 26... Rh2+ {[%clk 0:01:47.9]} 27. Ke1 {[%clk 0:02:21.7]} 27... Bh4+
{[%clk 0:01:46.7]} 0-1

[Event "Early-Titled-Tuesday-Blitz-April-16-2024"]
[Site "Chess.com"]
[Date "2024.04.16"]
[Round "6"]
[White "VerdeNotte"]
[Black "only_strong_moves"]
[Result "1-0"]
[WhiteElo "2880"]
[BlackElo "2641"]
[TimeControl "180+1"]
[EndTime "9:04:12 PDT"]
[Termination "VerdeNotte won by resignation"]

1. e4 {[%clk 0:02:52.5]} 1... d5 {[%clk 0:02:59.6]} 2. exd5 {[%clk 0:02:51.8]}
2... Qxd5 {[%clk 0:03:00.5]} 3. Nc3 {[%clk 0:02:50.6]} 3... Qa5 {[%clk
0:03:01.1]} 4. Nf3 {[%clk 0:02:49.7]} 4... Nf6 {[%clk 0:03:01.5]} 5. Bc4 {[%clk
0:02:49.2]} 5... Bf5 {[%clk 0:03:01.9]} 6. d3 {[%clk 0:02:49.5]} 6... e6 {[%clk
0:03:02.2]} 7. Bd2 {[%clk 0:02:49.4]} 7... c6 {[%clk 0:03:00.3]} 8. Nd5 {[%clk
0:02:46.6]} 8... Qd8 {[%clk 0:03:00.1]} 9. Nxf6+ {[%clk 0:02:46.5]} 9... Qxf6
{[%clk 0:03:01]} 10. Bc3 {[%clk 0:02:44.8]} 10... Qh6 {[%clk 0:02:55.4]} 11. Nd4
{[%clk 0:02:39.6]} 11... Bg6 {[%clk 0:02:50.1]} 12. h4 {[%clk 0:02:29]} 12... e5
{[%clk 0:02:35.8]} 13. Qe2 {[%clk 0:02:08.1]} 13... Be7 {[%clk 0:01:57.8]} 14.
Bd2 {[%clk 0:01:50.8]} 14... exd4 {[%clk 0:01:44.6]} 15. Bxh6 {[%clk 0:01:50.5]}
15... gxh6 {[%clk 0:01:45.5]} 16. h5 {[%clk 0:01:41.8]} 16... Bf5 {[%clk
0:01:44.9]} 17. Qe5 {[%clk 0:01:41.6]} 1-0

[Event "Early-Titled-Tuesday-Blitz-April-16-2024"]
[Site "Chess.com"]
[Date "2024.04.16"]
[Round "6"]
[White "Alexei_Gubajdullin"]
[Black "NusratAlo"]
[Result "1-0"]
[WhiteElo "2621"]
[BlackElo "1906"]
[TimeControl "180+1"]
[EndTime "9:04:12 PDT"]
[Termination "Alexei_Gubajdullin won by resignation"]

1. Nf3 {[%clk 0:02:57.5]} 1... d5 {[%clk 0:02:59.4]} 2. g3 {[%clk 0:02:57.7]}
2... Nf6 {[%clk 0:02:59]} 3. Bg2 {[%clk 0:02:57.9]} 3... c6 {[%clk 0:02:58.9]}
4. O-O {[%clk 0:02:58]} 4... Nbd7 {[%clk 0:02:58.9]} 5. d3 {[%clk 0:02:58.1]}
5... g6 {[%clk 0:02:59.3]} 6. Nbd2 {[%clk 0:02:58.1]} 6... Bg7 {[%clk
0:02:59.5]} 7. e4 {[%clk 0:02:58.3]} 7... O-O {[%clk 0:02:52.5]} 8. Qe2 {[%clk
0:02:58.4]} 8... dxe4 {[%clk 0:02:49.1]} 9. dxe4 {[%clk 0:02:57.9]} 9... e5
{[%clk 0:02:39.9]} 10. Nc4 {[%clk 0:02:58]} 10... Qc7 {[%clk 0:02:39.2]} 11. a4
{[%clk 0:02:57.3]} 11... Re8 {[%clk 0:02:36.6]} 12. Rd1 {[%clk 0:02:56.4]} 12...
Bf8 {[%clk 0:02:24.7]} 13. a5 {[%clk 0:02:55.8]} 13... a6 {[%clk 0:02:22.6]} 14.
Be3 {[%clk 0:02:53.1]} 14... c5 {[%clk 0:02:20.8]} 15. Nfd2 {[%clk 0:02:46.9]}
15... b5 {[%clk 0:02:18.7]} 16. axb6 {[%clk 0:02:46.2]} 16... Nxb6 {[%clk
0:02:18.7]} 17. Nxb6 {[%clk 0:02:45.4]} 17... Qxb6 {[%clk 0:02:19.2]} 18. Nc4
{[%clk 0:02:46.1]} 18... Qc6 {[%clk 0:02:16.1]} 19. Bg5 {[%clk 0:02:42.9]} 19...
Bb7 {[%clk 0:02:12.2]} 20. Na5 {[%clk 0:02:40.1]} 20... Qb6 {[%clk 0:02:02]} 21.
Nxb7 {[%clk 0:02:40.1]} 21... Qxb7 {[%clk 0:01:58.6]} 22. Bxf6 {[%clk
0:02:40.4]} 22... Qxb2 {[%clk 0:01:56.9]} 23. Rab1 {[%clk 0:02:37.4]} 23... Qc3
{[%clk 0:01:48.5]} 24. Rb7 {[%clk 0:02:33.9]} 24... a5 {[%clk 0:01:45.3]} 25.
Rdd7 {[%clk 0:02:32.6]} 25... a4 {[%clk 0:01:40.2]} 26. Rxf7 {[%clk 0:02:32.6]}
26... a3 {[%clk 0:01:33.7]} 27. Rxh7 {[%clk 0:02:31.4]} 27... Bg7 {[%clk
0:01:28.6]} 28. Rbxg7+ {[%clk 0:02:30.3]} 1-0